[Event "*** MasterClass Titled Tuesday Blitz"]
[Site "Chess.com"]
[Date "2017.08.01"]
[Round "9"]
[White "prochn"]
[Black "DrHolmes13"]
[Result "0-1"]
[WhiteElo "2283"]
[BlackElo "2414"]
[TimeControl "180+2"]
[EndTime "15:04:16 PDT"]
[Termination "DrHolmes13 won on time"]

1. d4 {[%clk 0:03:01.9]} 1... Nf6 {[%clk 0:03:00.2]} 2. c4 {[%clk 0:03:02.2]}
2... d6 {[%clk 0:03:00.9]} 3. Nf3 {[%clk 0:03:01]} 3... g6 {[%clk 0:02:59.5]} 4.
g3 {[%clk 0:03:01.3]} 4... Bg7 {[%clk 0:03:00.5]} 5. Bg2 {[%clk 0:03:02.4]} 5...
O-O {[%clk 0:03:00.3]} 6. O-O {[%clk 0:03:03.2]} 6... c6 {[%clk 0:03:01]} 7. Nc3
{[%clk 0:03:03.6]} 7... Qb6 {[%clk 0:03:02.7]} 8. h3 {[%clk 0:03:00.5]} 8... Na6
{[%clk 0:03:01.7]} 9. e4 {[%clk 0:02:57.4]} 9... e5 {[%clk 0:03:01.9]} 10. c5
{[%clk 0:02:42]} 10... dxc5 {[%clk 0:03:01.1]} 11. dxe5 {[%clk 0:02:42.3]} 11...
Nd7 {[%clk 0:03:01.2]} 12. e6 {[%clk 0:02:35.5]} 12... fxe6 {[%clk 0:03:02.3]}
13. Re1 {[%clk 0:01:35.2]} 13... Ne5 {[%clk 0:02:55.5]} 14. Nxe5 {[%clk
0:01:13]} 14... Bxe5 {[%clk 0:02:56.1]} 15. f4 {[%clk 0:01:13.3]} 15... Bd4+
{[%clk 0:02:54.1]} 16. Kh2 {[%clk 0:01:14.6]} 16... Rd8 {[%clk 0:02:46.6]} 17.
Qg4 {[%clk 0:01:08.9]} 17... Nb4 {[%clk 0:02:42.1]} 18. e5 {[%clk 0:00:57.3]}
18... Nc2 {[%clk 0:02:35.5]} 19. Bd2 {[%clk 0:00:55.7]} 19... Nxa1 {[%clk
0:02:28.9]} 20. Ne4 {[%clk 0:00:56.1]} 20... Rf8 {[%clk 0:02:22.7]} 21. Rxa1
{[%clk 0:00:55]} 21... Qxb2 {[%clk 0:02:23]} 22. Rf1 {[%clk 0:00:50.6]} 22...
Bd7 {[%clk 0:02:16.2]} 23. Bc1 {[%clk 0:00:51.3]} 23... Qxa2 {[%clk 0:02:12.9]}
24. Qh4 {[%clk 0:00:48.5]} 24... Rf7 {[%clk 0:02:09.9]} 25. Ng5 {[%clk
0:00:43.1]} 25... Rg7 {[%clk 0:02:07.6]} 26. Kh1 {[%clk 0:00:41.7]} 26... Qe2
{[%clk 0:01:58.3]} 27. Ne4 {[%clk 0:00:36.3]} 27... Kh8 {[%clk 0:01:54]} 28. Nf6
{[%clk 0:00:36.2]} 28... Rf8 {[%clk 0:01:49.3]} 29. Qg5 {[%clk 0:00:30.3]} 29...
a5 {[%clk 0:01:37.2]} 30. h4 {[%clk 0:00:23.9]} 30... b5 {[%clk 0:01:32.2]} 31.
Ng4 {[%clk 0:00:20.5]} 31... a4 {[%clk 0:01:28.9]} 32. f5 {[%clk 0:00:19.6]}
32... gxf5 {[%clk 0:01:25.9]} 33. Qh6 {[%clk 0:00:08.6]} 33... Qxg4 {[%clk
0:01:25.3]} 34. Bg5 {[%clk 0:00:08.9]} 34... Qxg3 {[%clk 0:01:19.5]} 35. Rd1
{[%clk 0:00:05.2]} 35... Qg4 {[%clk 0:01:15]} 36. Rf1 {[%clk 0:00:02.1]} 36...
Bxe5 {[%clk 0:01:04.4]} 37. Re1 {[%clk 0:00:03.2]} 37... Qg3 {[%clk 0:01:01.4]}
38. Rxe5 {[%clk 0:00:04.1]} 38... Qxe5 {[%clk 0:01:01.9]} 39. h5 {[%clk
0:00:03.5]} 39... a3 {[%clk 0:01:00.5]} 40. Be7 {[%clk 0:00:03.5]} 40... Rff7
{[%clk 0:00:53.1]} 0-1

[Event "*** MasterClass Titled Tuesday Blitz"]
[Site "Chess.com"]
[Date "2017.08.01"]
[Round "9"]
[White "Sebastian"]
[Black "Fisher-Human"]
[Result "0-1"]
[WhiteElo "2784"]
[BlackElo "2502"]
[TimeControl "180+2"]
[EndTime "15:04:26 PDT"]
[Termination "Fisher-Human won on time"]

1. e4 {[%clk 0:03:01.9]} 1... e5 {[%clk 0:02:52.2]} 2. Nf3 {[%clk 0:03:02.2]}
2... d6 {[%clk 0:02:53]} 3. d4 {[%clk 0:03:02.2]} 3... Nd7 {[%clk 0:02:53.3]} 4.
Bc4 {[%clk 0:03:01.6]} 4... c6 {[%clk 0:02:52.8]} 5. O-O {[%clk 0:02:48]} 5...
Be7 {[%clk 0:02:52.7]} 6. dxe5 {[%clk 0:02:46.1]} 6... dxe5 {[%clk 0:02:50.6]}
7. Ng5 {[%clk 0:02:46.9]} 7... Bxg5 {[%clk 0:02:48.5]} 8. Qh5 {[%clk 0:02:48.2]}
8... g6 {[%clk 0:02:47.3]} 9. Qxg5 {[%clk 0:02:48]} 9... Qxg5 {[%clk 0:02:45.3]}
10. Bxg5 {[%clk 0:02:48]} 10... Ngf6 {[%clk 0:02:45.7]} 11. f3 {[%clk
0:02:46.4]} 11... O-O {[%clk 0:02:44.6]} 12. Rd1 {[%clk 0:02:46.8]} 12... Kg7
{[%clk 0:02:45.2]} 13. a4 {[%clk 0:02:47.1]} 13... Nc5 {[%clk 0:02:41.7]} 14.
Be3 {[%clk 0:02:44.7]} 14... Ne6 {[%clk 0:02:42.5]} 15. Nd2 {[%clk 0:02:39.4]}
15... Rd8 {[%clk 0:02:29.2]} 16. Bf1 {[%clk 0:02:39.7]} 16... Nd4 {[%clk
0:02:27.6]} 17. Nc4 {[%clk 0:02:40.4]} 17... Be6 {[%clk 0:02:22.6]} 18. Rac1
{[%clk 0:02:33.6]} 18... Bxc4 {[%clk 0:02:18.7]} 19. Bxc4 {[%clk 0:02:33.5]}
19... b5 {[%clk 0:02:18.5]} 20. Bxd4 {[%clk 0:02:31.1]} 20... Rxd4 {[%clk
0:02:13.4]} 21. Rxd4 {[%clk 0:02:31.5]} 21... exd4 {[%clk 0:02:14.2]} 22. axb5
{[%clk 0:02:33.2]} 22... cxb5 {[%clk 0:02:12.6]} 23. Bxb5 {[%clk 0:02:34.8]}
23... Rb8 {[%clk 0:02:13.1]} 24. Bd3 {[%clk 0:02:29.1]} 24... Rxb2 {[%clk
0:02:13.5]} 25. Ra1 {[%clk 0:02:30.5]} 25... Nd7 {[%clk 0:02:07.4]} 26. Rxa7
{[%clk 0:02:29.7]} 26... Nc5 {[%clk 0:02:04.1]} 27. e5 {[%clk 0:01:50.7]} 27...
Kf8 {[%clk 0:01:51.3]} 28. h4 {[%clk 0:01:00.1]} 28... h5 {[%clk 0:01:36.9]} 29.
Kh2 {[%clk 0:00:28.1]} 29... Nxd3 {[%clk 0:01:33]} 30. cxd3 {[%clk 0:00:29.3]}
30... Rb3 {[%clk 0:01:32.6]} 31. Kg3 {[%clk 0:00:30.4]} 31... Rxd3 {[%clk
0:01:32.7]} 32. Kf4 {[%clk 0:00:32.1]} 32... Rd2 {[%clk 0:01:33.5]} 33. g3
{[%clk 0:00:19]} 33... d3 {[%clk 0:01:31.4]} 34. Kg5 {[%clk 0:00:12.9]} 34...
Rf2 {[%clk 0:01:28.7]} 35. f4 {[%clk 0:00:12.9]} 35... d2 {[%clk 0:01:25.4]} 36.
Kf6 {[%clk 0:00:06.7]} 36... Ke8 {[%clk 0:01:25]} 37. Ra8+ {[%clk 0:00:07.6]}
37... Kd7 {[%clk 0:01:25.5]} 38. Ra1 {[%clk 0:00:09.3]} 38... Ke8 {[%clk
0:01:21.7]} 39. Ra8+ {[%clk 0:00:08.2]} 39... Kd7 {[%clk 0:01:22.5]} 40. Ra1
{[%clk 0:00:09.7]} 40... Ke8 {[%clk 0:01:23.3]} 41. e6 {[%clk 0:00:06.6]} 41...
fxe6 {[%clk 0:01:21.5]} 42. Kxe6 {[%clk 0:00:08.5]} 42... Re2+ {[%clk
0:01:19.7]} 43. Kf6 {[%clk 0:00:09.8]} 43... Re1 {[%clk 0:01:20.1]} 44. Ra8+
{[%clk 0:00:09.6]} 44... Kd7 {[%clk 0:01:20.7]} 45. Ra7+ {[%clk 0:00:08.4]}
45... Kc6 {[%clk 0:01:19.8]} 46. Ra6+ {[%clk 0:00:09.2]} 46... Kd5 {[%clk
0:01:18.3]} 47. Ra8 {[%clk 0:00:09.9]} 47... Re6+ {[%clk 0:01:18]} 0-1

[Event "*** MasterClass Titled Tuesday Blitz"]
[Site "Chess.com"]
[Date "2017.08.01"]
[Round "9"]
[White "Me_ch_an"]
[Black "toad"]
[Result "0-1"]
[WhiteElo "2363"]
[BlackElo "2143"]
[TimeControl "180+2"]
[EndTime "15:04:29 PDT"]
[Termination "toad won by checkmate"]

1. e4 {[%clk 0:03:01.9]} 1... c5 {[%clk 0:03:01]} 2. Nf3 {[%clk 0:03:02]} 2...
d6 {[%clk 0:03:02.2]} 3. d4 {[%clk 0:03:02.9]} 3... cxd4 {[%clk 0:03:04.1]} 4.
Qxd4 {[%clk 0:03:04.1]} 4... Nc6 {[%clk 0:03:04.6]} 5. Bb5 {[%clk 0:03:05]} 5...
Bd7 {[%clk 0:03:04.7]} 6. Bxc6 {[%clk 0:03:06.3]} 6... Bxc6 {[%clk 0:03:06.3]}
7. Nc3 {[%clk 0:03:07.9]} 7... e6 {[%clk 0:03:06.2]} 8. Bg5 {[%clk 0:03:08.2]}
8... Nf6 {[%clk 0:03:05.9]} 9. O-O-O {[%clk 0:03:08.5]} 9... h6 {[%clk
0:03:02.6]} 10. Bxf6 {[%clk 0:03:07.7]} 10... Qxf6 {[%clk 0:03:04.4]} 11. Qxf6
{[%clk 0:03:06.8]} 11... gxf6 {[%clk 0:03:06.1]} 12. Rhe1 {[%clk 0:03:07.5]}
12... O-O-O {[%clk 0:03:00.6]} 13. Nd4 {[%clk 0:03:08]} 13... Rg8 {[%clk
0:02:56.6]} 14. g3 {[%clk 0:03:07.4]} 14... Bg7 {[%clk 0:02:17.3]} 15. Ndb5
{[%clk 0:02:58.3]} 15... Bf8 {[%clk 0:01:51]} 16. Nxa7+ {[%clk 0:02:57.5]} 16...
Kc7 {[%clk 0:01:51.7]} 17. Nab5+ {[%clk 0:02:56.5]} 17... Kb6 {[%clk 0:01:51.2]}
18. a4 {[%clk 0:02:55.6]} 18... Rg5 {[%clk 0:01:29.4]} 19. h4 {[%clk 0:02:42.6]}
19... Rc5 {[%clk 0:01:26.7]} 20. Rd4 {[%clk 0:02:01.6]} 20... f5 {[%clk
0:00:22.9]} 21. e5 {[%clk 0:01:43.7]} 21... d5 {[%clk 0:00:21]} 22. Kd2 {[%clk
0:01:37.2]} 22... h5 {[%clk 0:00:20.4]} 23. Ra1 {[%clk 0:01:36.6]} 23... Ra8
{[%clk 0:00:20.2]} 24. b4 {[%clk 0:01:26.8]} 24... Rc4 {[%clk 0:00:17.4]} 25.
a5+ {[%clk 0:01:27.4]} 25... Ka6 {[%clk 0:00:13.7]} 26. Nc7+ {[%clk 0:01:28.2]}
26... Ka7 {[%clk 0:00:15.3]} 27. Rxc4 {[%clk 0:01:29.2]} 27... dxc4 {[%clk
0:00:13.9]} 28. Nxa8 {[%clk 0:01:30.3]} 28... Kxa8 {[%clk 0:00:13.9]} 29. b5
{[%clk 0:01:31.4]} 29... Bf3 {[%clk 0:00:12.9]} 30. a6 {[%clk 0:01:30.6]} 30...
Bc5 {[%clk 0:00:11.4]} 31. Na4 {[%clk 0:00:55.5]} 31... Bd4 {[%clk 0:00:09.6]}
32. c3 {[%clk 0:00:55.7]} 32... Bxe5 {[%clk 0:00:09.5]} 33. Nb6+ {[%clk
0:00:54.3]} 33... Ka7 {[%clk 0:00:09.8]} 34. Nxc4 {[%clk 0:00:52.4]} 34... Bf6
{[%clk 0:00:06]} 35. b6+ {[%clk 0:00:53.1]} 35... Ka8 {[%clk 0:00:05.9]} 36. a7
{[%clk 0:00:52.9]} 36... Bd8 {[%clk 0:00:04.5]} 37. Ra5 {[%clk 0:00:52.7]} 37...
Bc6 {[%clk 0:00:04.9]} 38. Rc5 {[%clk 0:00:53.4]} 38... Be7 {[%clk 0:00:05.3]}
39. Ra5 {[%clk 0:00:52.7]} 39... Bd8 {[%clk 0:00:05.4]} 40. Ke3 {[%clk
0:00:51.9]} 40... Be7 {[%clk 0:00:03.7]} 41. Kf4 {[%clk 0:00:52.6]} 41... f6
{[%clk 0:00:04]} 42. Ra1 {[%clk 0:00:47.4]} 42... Bd5 {[%clk 0:00:04.7]} 43. Ne3
{[%clk 0:00:45.7]} 43... Bd6# {[%clk 0:00:05.3]} 0-1

[Event "*** MasterClass Titled Tuesday Blitz"]
[Site "Chess.com"]
[Date "2017.08.01"]
[Round "9"]
[White "Bengalas"]
[Black "Giraffe_Chess"]
[Result "1-0"]
[WhiteElo "2469"]
[BlackElo "2215"]
[TimeControl "180+2"]
[EndTime "15:04:46 PDT"]
[Termination "Bengalas won by resignation"]

1. d4 {[%clk 0:03:01.9]} 1... Nf6 {[%clk 0:02:59.6]} 2. c4 {[%clk 0:03:02.5]}
2... e6 {[%clk 0:03:00.7]} 3. Nc3 {[%clk 0:03:02.9]} 3... Bb4 {[%clk 0:03:00.6]}
4. Qc2 {[%clk 0:03:02.9]} 4... b6 {[%clk 0:02:57.8]} 5. Nf3 {[%clk 0:03:03.3]}
5... Bb7 {[%clk 0:02:53.7]} 6. g3 {[%clk 0:03:04.2]} 6... O-O {[%clk 0:02:52.8]}
7. Bg2 {[%clk 0:03:04.5]} 7... c5 {[%clk 0:02:54.4]} 8. dxc5 {[%clk 0:03:04.1]}
8... bxc5 {[%clk 0:02:46.7]} 9. O-O {[%clk 0:03:04.9]} 9... d5 {[%clk
0:02:47.1]} 10. cxd5 {[%clk 0:02:49.4]} 10... exd5 {[%clk 0:02:49]} 11. a3
{[%clk 0:02:47.8]} 11... Ba5 {[%clk 0:02:37.2]} 12. Rd1 {[%clk 0:02:39.8]} 12...
Nbd7 {[%clk 0:02:35.7]} 13. e3 {[%clk 0:02:15.7]} 13... Qe7 {[%clk 0:02:28.5]}
14. b3 {[%clk 0:02:11.8]} 14... Rac8 {[%clk 0:02:27.6]} 15. Bb2 {[%clk 0:01:44]}
15... d4 {[%clk 0:02:11.7]} 16. exd4 {[%clk 0:01:41.4]} 16... cxd4 {[%clk
0:02:13.7]} 17. Nxd4 {[%clk 0:01:41.5]} 17... Bxg2 {[%clk 0:01:53.6]} 18. Kxg2
{[%clk 0:01:41.2]} 18... Bxc3 {[%clk 0:01:33.4]} 19. Bxc3 {[%clk 0:01:41.6]}
19... Nd5 {[%clk 0:01:30.7]} 20. Ne2 {[%clk 0:00:50.6]} 20... N7b6 {[%clk
0:01:09.2]} 21. Qd3 {[%clk 0:00:42.5]} 21... Rfd8 {[%clk 0:01:03.8]} 22. Qf3
{[%clk 0:00:39.2]} 22... Nxc3 {[%clk 0:00:48]} 23. Nxc3 {[%clk 0:00:40.1]} 23...
Rxd1 {[%clk 0:00:48.8]} 24. Nxd1 {[%clk 0:00:31.3]} 24... h6 {[%clk 0:00:47.5]}
25. b4 {[%clk 0:00:27]} 25... Rc2 {[%clk 0:00:40.4]} 26. Ne3 {[%clk 0:00:26.2]}
26... Rb2 {[%clk 0:00:38.5]} 27. Rc1 {[%clk 0:00:24.4]} 27... Rd2 {[%clk
0:00:18]} 28. Qc6 {[%clk 0:00:21.7]} 28... Rd6 {[%clk 0:00:16.2]} 29. Qa8+
{[%clk 0:00:21.5]} 29... Kh7 {[%clk 0:00:15.5]} 30. Qf3 {[%clk 0:00:22]} 30...
Kg8 {[%clk 0:00:15.7]} 31. Nf5 {[%clk 0:00:22.3]} 31... Qd7 {[%clk 0:00:17]} 32.
Nxd6 {[%clk 0:00:23.1]} 32... Qxd6 {[%clk 0:00:18.9]} 33. Rd1 {[%clk 0:00:24]}
33... Qe6 {[%clk 0:00:19.5]} 34. Rd8+ {[%clk 0:00:24.1]} 34... Kh7 {[%clk
0:00:20.8]} 35. Qd3+ {[%clk 0:00:24.9]} 35... g6 {[%clk 0:00:22.5]} 36. Rd6
{[%clk 0:00:24.9]} 36... Qe7 {[%clk 0:00:20.7]} 37. Rd4 {[%clk 0:00:25.4]} 37...
Qb7+ {[%clk 0:00:17.2]} 38. Qf3 {[%clk 0:00:26.4]} 38... Qc7 {[%clk 0:00:18.5]}
39. Rd3 {[%clk 0:00:25.9]} 39... Nc4 {[%clk 0:00:16.5]} 40. Rc3 {[%clk
0:00:26.3]} 40... Qc8 {[%clk 0:00:16]} 41. Qxf7+ {[%clk 0:00:26.2]} 41... Kh8
{[%clk 0:00:16.5]} 42. Rxc4 {[%clk 0:00:26.8]} 42... Qa8+ {[%clk 0:00:17.5]} 43.
Qf3 {[%clk 0:00:27.5]} 43... Qd8 {[%clk 0:00:17]} 44. Qc3+ {[%clk 0:00:28]}
44... Kg8 {[%clk 0:00:17.6]} 45. Rc8 {[%clk 0:00:28.6]} 1-0

[Event "*** MasterClass Titled Tuesday Blitz"]
[Site "Chess.com"]
[Date "2017.08.01"]
[Round "9"]
[White "pawnwonder"]
[Black "djano"]
[Result "0-1"]
[WhiteElo "1865"]
[BlackElo "2310"]
[TimeControl "180+2"]
[EndTime "15:04:48 PDT"]
[Termination "djano won by checkmate"]

1. e4 {[%clk 0:03:01.9]} 1... e6 {[%clk 0:02:57.6]} 2. d4 {[%clk 0:03:02]} 2...
d5 {[%clk 0:02:58.5]} 3. e5 {[%clk 0:03:03.2]} 3... c5 {[%clk 0:02:58.8]} 4. c3
{[%clk 0:03:04.7]} 4... Nc6 {[%clk 0:02:59.6]} 5. Nf3 {[%clk 0:03:06.1]} 5...
cxd4 {[%clk 0:02:58.8]} 6. cxd4 {[%clk 0:03:06.4]} 6... Qb6 {[%clk 0:02:59.8]}
7. a3 {[%clk 0:03:07.7]} 7... Nge7 {[%clk 0:03:00.8]} 8. b4 {[%clk 0:03:05.4]}
8... Nf5 {[%clk 0:03:01.9]} 9. Bb2 {[%clk 0:03:00.5]} 9... a5 {[%clk 0:03:03]}
10. b5 {[%clk 0:03:00.1]} 10... a4 {[%clk 0:03:04.2]} 11. Nc3 {[%clk 0:02:40.1]}
11... Ncxd4 {[%clk 0:02:59.8]} 12. Nxa4 {[%clk 0:02:26.9]} 12... Nxf3+ {[%clk
0:02:59.1]} 13. gxf3 {[%clk 0:02:24.1]} 13... Qa5+ {[%clk 0:03:00.4]} 14. Nc3
{[%clk 0:02:23.2]} 14... d4 {[%clk 0:03:01.3]} 15. Qd2 {[%clk 0:02:10.7]} 15...
dxc3 {[%clk 0:02:59.7]} 16. Bxc3 {[%clk 0:02:11.4]} 16... Qb6 {[%clk 0:02:56.6]}
17. Bh3 {[%clk 0:01:57.3]} 17... Nh4 {[%clk 0:02:52.9]} 18. Qd3 {[%clk
0:01:37.5]} 18... Bc5 {[%clk 0:02:47.5]} 19. O-O {[%clk 0:01:35.6]} 19... O-O
{[%clk 0:02:47.9]} 20. Qe4 {[%clk 0:01:32.4]} 20... Ng6 {[%clk 0:02:43.2]} 21.
Bg2 {[%clk 0:01:23.7]} 21... Bd7 {[%clk 0:02:41.7]} 22. a4 {[%clk 0:01:23.5]}
22... Rfc8 {[%clk 0:02:35.7]} 23. Bb2 {[%clk 0:01:21.6]} 23... Qd8 {[%clk
0:02:15.3]} 24. Qxb7 {[%clk 0:01:15.3]} 24... Nf4 {[%clk 0:02:16.1]} 25. Bc1
{[%clk 0:01:08.9]} 25... Nxg2 {[%clk 0:02:08.6]} 26. Kxg2 {[%clk 0:01:09.2]}
26... Rcb8 {[%clk 0:02:04.4]} 27. Qe4 {[%clk 0:01:08.9]} 27... Bxb5 {[%clk
0:02:05.5]} 28. Rg1 {[%clk 0:01:07.5]} 28... Bd3 {[%clk 0:02:06]} 29. Qg4 {[%clk
0:01:03.8]} 29... Bf5 {[%clk 0:02:05.4]} 30. Qg3 {[%clk 0:00:58.8]} 30... Bg6
{[%clk 0:02:02.4]} 31. h4 {[%clk 0:00:58.5]} 31... h5 {[%clk 0:02:02.4]} 32. Kh2
{[%clk 0:00:58.7]} 32... Qd4 {[%clk 0:01:59.2]} 33. Be3 {[%clk 0:00:58.7]} 33...
Qb4 {[%clk 0:01:55.3]} 34. Rab1 {[%clk 0:00:41.4]} 34... Qxa4 {[%clk 0:01:51.2]}
35. Rxb8+ {[%clk 0:00:40.3]} 35... Rxb8 {[%clk 0:01:52.3]} 36. Bxc5 {[%clk
0:00:40.6]} 36... Rb2 {[%clk 0:01:48.3]} 37. Be3 {[%clk 0:00:40.3]} 37... Re2
{[%clk 0:01:48.8]} 38. Qg5 {[%clk 0:00:38.2]} 38... Qd7 {[%clk 0:01:45.4]} 39.
Ra1 {[%clk 0:00:24.8]} 39... Kh7 {[%clk 0:01:46.2]} 40. Rg1 {[%clk 0:00:20.2]}
40... Qd5 {[%clk 0:01:45.6]} 41. Qf4 {[%clk 0:00:20.3]} 41... Qd3 {[%clk
0:01:42.4]} 42. Rg2 {[%clk 0:00:19.6]} 42... Re1 {[%clk 0:01:42.8]} 43. Qg5
{[%clk 0:00:19.3]} 43... Qf1 {[%clk 0:01:43.2]} 44. Rg1 {[%clk 0:00:17.9]} 44...
Qe2 {[%clk 0:01:44.7]} 45. Rg2 {[%clk 0:00:18.7]} 45... Qxf3 {[%clk 0:01:43.8]}
46. Qg3 {[%clk 0:00:17.6]} 46... Qd1 {[%clk 0:01:43.2]} 47. Rg1 {[%clk
0:00:17.4]} 47... Rxg1 {[%clk 0:01:41.6]} 48. Qxg1 {[%clk 0:00:17.8]} 48... Qd5
{[%clk 0:01:43.5]} 49. Qg3 {[%clk 0:00:18.5]} 49... Qd1 {[%clk 0:01:43.6]} 50.
Qg1 {[%clk 0:00:19.1]} 50... Qe2 {[%clk 0:01:43.9]} 51. Qg3 {[%clk 0:00:19.9]}
51... Be4 {[%clk 0:01:43.8]} 52. Qg5 {[%clk 0:00:19]} 52... Qd1 {[%clk
0:01:39.8]} 53. Qg1 {[%clk 0:00:19.8]} 53... Qf3 {[%clk 0:01:40.6]} 54. Bb6
{[%clk 0:00:17.8]} 54... Ba8 {[%clk 0:01:40.2]} 55. Be3 {[%clk 0:00:18.2]} 55...
Qe4 {[%clk 0:01:40.5]} 56. Bb6 {[%clk 0:00:16.6]} 56... Qxh4# {[%clk 0:01:41.2]}
0-1

[Event "*** MasterClass Titled Tuesday Blitz"]
[Site "Chess.com"]
[Date "2017.08.01"]
[Round "9"]
[White "Vrolijk"]
[Black "Journey_to_GrandMaster_YT"]
[Result "1-0"]
[WhiteElo "2507"]
[BlackElo "2349"]
[TimeControl "180+2"]
[EndTime "15:04:55 PDT"]
[Termination "Vrolijk won by resignation"]

1. e4 {[%clk 0:03:01.9]} 1... d6 {[%clk 0:03:01.9]} 2. d4 {[%clk 0:03:02.7]}
2... Nf6 {[%clk 0:03:03.5]} 3. Nc3 {[%clk 0:03:03.1]} 3... e5 {[%clk 0:03:05.1]}
4. Nf3 {[%clk 0:03:01]} 4... Nbd7 {[%clk 0:03:06.1]} 5. Bc4 {[%clk 0:02:57.1]}
5... Be7 {[%clk 0:03:06.7]} 6. O-O {[%clk 0:02:56.9]} 6... O-O {[%clk
0:03:07.6]} 7. a4 {[%clk 0:02:58.5]} 7... c6 {[%clk 0:03:08.7]} 8. a5 {[%clk
0:02:59.9]} 8... Nxe4 {[%clk 0:03:09.6]} 9. Nxe4 {[%clk 0:03:00.3]} 9... d5
{[%clk 0:03:11]} 10. Nxe5 {[%clk 0:02:59.6]} 10... Nxe5 {[%clk 0:03:07.5]} 11.
dxe5 {[%clk 0:03:00.8]} 11... dxc4 {[%clk 0:03:01]} 12. Nd6 {[%clk 0:02:54.6]}
12... Be6 {[%clk 0:02:39.1]} 13. Nxb7 {[%clk 0:02:45.6]} 13... Qc7 {[%clk
0:02:40.2]} 14. Nd6 {[%clk 0:02:46.3]} 14... Rad8 {[%clk 0:02:39.9]} 15. Qe2
{[%clk 0:02:31.2]} 15... Bxd6 {[%clk 0:02:38.7]} 16. exd6 {[%clk 0:02:33.1]}
16... Qxd6 {[%clk 0:02:38.6]} 17. Be3 {[%clk 0:02:32.7]} 17... Qb4 {[%clk
0:02:35.4]} 18. Bxa7 {[%clk 0:02:29.1]} 18... Qxb2 {[%clk 0:02:33.3]} 19. Bb6
{[%clk 0:02:21.3]} 19... Ra8 {[%clk 0:02:26.7]} 20. Rfb1 {[%clk 0:02:17.3]}
20... Qc3 {[%clk 0:02:24.5]} 21. a6 {[%clk 0:02:13.1]} 21... Bf5 {[%clk
0:02:25.1]} 22. Rc1 {[%clk 0:01:43.4]} 22... Rfe8 {[%clk 0:02:20.7]} 23. Be3
{[%clk 0:01:43.5]} 23... c5 {[%clk 0:01:58.5]} 24. Qf3 {[%clk 0:01:30.5]} 24...
Be4 {[%clk 0:01:53.1]} 25. Qg3 {[%clk 0:01:29.1]} 25... Bxc2 {[%clk 0:01:50.7]}
26. Ra2 {[%clk 0:01:18.3]} 26... Qd3 {[%clk 0:01:24.3]} 27. Raxc2 {[%clk
0:01:16.1]} 27... Rxa6 {[%clk 0:01:24.6]} 28. Rxc4 {[%clk 0:01:16.6]} 28... Rg6
{[%clk 0:01:24]} 29. Qf3 {[%clk 0:01:16.6]} 29... Rf6 {[%clk 0:01:21.9]} 30. Qd1
{[%clk 0:01:15.5]} 30... Qg6 {[%clk 0:01:06.1]} 31. Rxc5 {[%clk 0:01:15.6]}
31... h6 {[%clk 0:01:04.5]} 32. Rc8 {[%clk 0:01:16.1]} 32... Rxc8 {[%clk
0:01:01.5]} 33. Rxc8+ {[%clk 0:01:18]} 33... Kh7 {[%clk 0:01:03.3]} 34. Qc2
{[%clk 0:01:17.8]} 34... Rf5 {[%clk 0:01:03.6]} 35. h3 {[%clk 0:01:17.2]} 35...
h5 {[%clk 0:01:01]} 36. Rc5 {[%clk 0:01:16.9]} 36... Rxc5 {[%clk 0:00:56.4]} 37.
Qxg6+ {[%clk 0:01:18.8]} 37... Kxg6 {[%clk 0:00:56.6]} 38. Bxc5 {[%clk
0:01:20.1]} 38... Kf5 {[%clk 0:00:58.5]} 39. Kf1 {[%clk 0:01:18.9]} 39... g5
{[%clk 0:00:57.1]} 40. Ke2 {[%clk 0:01:20.3]} 40... Ke4 {[%clk 0:00:58.1]} 41.
Be7 {[%clk 0:01:20.5]} 41... g4 {[%clk 0:00:58.9]} 42. h4 {[%clk 0:01:21.7]}
42... f5 {[%clk 0:00:58.8]} 43. f3+ {[%clk 0:01:22.8]} 43... Ke5 {[%clk
0:00:58]} 44. fxg4 {[%clk 0:01:19.9]} 44... fxg4 {[%clk 0:00:52.1]} 45. Ke3
{[%clk 0:01:20.5]} 45... Kf5 {[%clk 0:00:53]} 46. Bd6 {[%clk 0:01:21.4]} 46...
Ke6 {[%clk 0:00:53.6]} 47. Kf4 {[%clk 0:01:23.3]} 47... Kxd6 {[%clk 0:00:53.2]}
48. Kg5 {[%clk 0:01:25.2]} 48... Ke5 {[%clk 0:00:54.4]} 49. Kxh5 {[%clk
0:01:26.5]} 49... Kf4 {[%clk 0:00:53.7]} 50. Kg6 {[%clk 0:01:27.5]} 50... g3
{[%clk 0:00:52.9]} 51. h5 {[%clk 0:01:27.8]} 51... Ke3 {[%clk 0:00:54.1]} 52. h6
{[%clk 0:01:25.7]} 52... Kf2 {[%clk 0:00:55.6]} 53. h7 {[%clk 0:01:27.6]} 53...
Kxg2 {[%clk 0:00:57.5]} 54. h8=Q {[%clk 0:01:29.1]} 54... Kg1 {[%clk 0:00:56]}
55. Qa1+ {[%clk 0:01:28.7]} 55... Kh2 {[%clk 0:00:57.1]} 56. Qe5 {[%clk
0:01:27.6]} 56... Kh3 {[%clk 0:00:57.4]} 57. Qe3 {[%clk 0:01:25.2]} 57... Kh2
{[%clk 0:00:58.3]} 58. Qf4 {[%clk 0:01:26.3]} 58... Kh3 {[%clk 0:00:59.6]} 59.
Qf3 {[%clk 0:01:24.4]} 59... Kh2 {[%clk 0:01:00.5]} 60. Qh5+ {[%clk 0:01:25.9]}
60... Kg1 {[%clk 0:01:01.4]} 61. Kf5 {[%clk 0:01:27]} 61... g2 {[%clk
0:01:02.2]} 62. Kf4 {[%clk 0:01:26.1]} 62... Kf1 {[%clk 0:00:58.1]} 63. Qd1+
{[%clk 0:01:25.4]} 63... Kf2 {[%clk 0:00:59.2]} 64. Qd2+ {[%clk 0:01:27]} 64...
Kf1 {[%clk 0:01:00.2]} 65. Qd3+ {[%clk 0:01:28.3]} 65... Kf2 {[%clk 0:01:01.1]}
66. Qg3+ {[%clk 0:01:28.1]} 66... Kf1 {[%clk 0:01:02.1]} 67. Qf3+ {[%clk
0:01:29.6]} 67... Kg1 {[%clk 0:01:01.8]} 68. Kg3 {[%clk 0:01:29]} 1-0